fUST/lending_fUST_20250510
["ID","MTS","AMOUNT","RATE_DAILY","PERIOD"]
[360539734,1746865838784,-12049.5,8.412e-05,2]
[360539746,1746865840562,-4020.9651277,8.407e-05,2]
[360539747,1746865840571,-41445.20239558,8.412e-05,2]
[360539748,1746865841226,-689.43045584,8.412e-05,2]
[360539749,1746865841271,-493.28256153,8.412e-05,2]
[360539765,1746865843313,-30757.19380843,8.412e-05,2]
[360539766,1746865843325,-1351.5434118,8.412e-05,2]
[360539768,1746865843338,-4206.21136439,8.412e-05,2]
[360539772,1746865843386,-4293.63637309,8.412e-05,2]
[360539773,1746865843398,-517.2187037,8.412e-05,2]
[360539774,1746865843410,-519.1,8.412e-05,2]
[360539782,1746865843568,-96.71269293,8.412e-05,2]
[360539783,1746865843587,-399328.88270584,8.412e-05,2]
[360539790,1746865846390,-5144.70477969,8.328e-05,2]
[360539791,1746865846400,-4411.07899842,8.412e-05,2]
[360539792,1746865846445,-3093.55639152,8.412e-05,2]
[360539793,1746865846458,-1659.57360687,8.412e-05,2]
[360539794,1746865846471,-1013.7980449,8.412e-05,2]
[360539795,1746865846501,-519.6499999,8.412e-05,2]
[360539797,1746865874006,153.06,0.000199,31]
[360539798,1746865874111,153.06,0.000199,31]
[360539799,1746865874401,153.06,0.000199,31]
[360539800,1746865874447,153.06,0.000199,31]
[360539801,1746865874493,153.06,0.000199,31]
[360539802,1746865874543,153.06,0.000199,31]
[360539803,1746865874596,153.06,0.000199,31]
[360539804,1746865874641,153.06,0.000199,31]
[360539805,1746865874697,153.06,0.000199,31]
[360539806,1746865874743,153.06,0.000199,31]
[360539807,1746865874791,153.06,0.000199,31]
[360539808,1746865874834,153.06,0.000199,31]
[360539809,1746865875218,-297.83906151,8.06e-05,2]
[360539810,1746865877831,-250.0,8.06e-05,2]
[360539811,1746865893317,-181.62220797,8.06e-05,2]
[360539812,1746865907806,-168.3775267,8.06e-05,2]
[360539813,1746865922712,-102.16120382,8.06e-05,2]
[360539814,1746865927414,-205.10916624,8.127e-05,2]
[360539815,1746865938038,-311.65439512,8.127e-05,2]
[360539816,1746865953552,-334.88968516,8.127e-05,2]
[360539817,1746865967819,1000.0,7.978e-05,2]
[360539818,1746865968358,-312.1776784,8.126e-05,2]
[360539819,1746865983328,-254.44316651,8.125e-05,2]
[360539820,1746865983537,226.5882376,7.407e-05,2]
[360539821,1746865997753,-45.55683349,8.125e-05,2]
[360539822,1746865997779,-187.8223216,8.126e-05,2]
[360539823,1746865997805,-66.74737592,8.126e-05,2]
[360539824,1746866006766,39049.81747881,0.0002,30]
[360539825,1746866012843,-101.59448541,8.126e-05,2]
[360539826,1746866012866,-204.08760759,8.126e-05,2]
[360539827,1746866012890,-64.3299227,8.126e-05,2]
[360539828,1746866027775,-355.81028018,8.126e-05,2]
[360539829,1746866041269,1000.0,7.978e-05,2]
[360539830,1746866043327,-288.37943964,8.125e-05,2]
[360539831,1746866043869,-11.62056036,8.125e-05,2]
[360539832,1746866043894,-79.85979712,8.126e-05,2]
[360539833,1746866043918,-196.89908216,8.126e-05,2]
[360539834,1746866057825,-14.88594178,8.126e-05,2]
[360539835,1746866057852,-215.58357166,8.126e-05,2]
[360539836,1746866072790,-202.00503541,8.125e-05,2]
[360539837,1746866088428,-252.30420774,8.125e-05,2]
[360539838,1746866102735,-45.69075685,8.125e-05,2]
[360539839,1746866102764,-262.5309288,8.125e-05,2]
[360539840,1746866108292,1000.0,7.978e-05,2]
[360539844,1746866203987,-166.12905078,8.025e-05,2]
[360539845,1746866207903,-163.66837038,8.025e-05,2]
[360539846,1746866222726,-177.79742116,8.025e-05,2]
[360539847,1746866238301,-382.63843984,8.025e-05,2]
[360539848,1746866253590,-109.76671784,8.025e-05,2]
[360539849,1746866273767,-383.32630795,8.025e-05,2]
[360539850,1746866280788,3465.0342777,7.192e-05,2]
[360539851,1746866283958,-252.80460097,8.025e-05,2]
[360539852,1746866297871,-244.06422832,8.025e-05,2]
[360539853,1746866312774,-119.80486276,8.025e-05,2]
[360539854,1746866323578,206.6642364,7.285e-05,2]
[360539855,1746866365311,764.86605569,7.925e-05,2]
[360539857,1746866423031,154.538006,6e-07,2]
[360539858,1746866423148,154.538006,6e-07,2]
[360539859,1746866423262,154.538006,6e-07,2]
[360539860,1746866423376,154.538006,6e-07,2]
[360539861,1746866423503,154.538006,6e-07,2]
[360539862,1746866423652,154.538006,6e-07,2]
[360539863,1746866484900,153.07,0.000199,31]
[360539864,1746866484965,153.07,0.000199,31]
[360539865,1746866485061,153.07,0.000199,31]
[360539866,1746866485172,153.07,0.000199,31]
[360539867,1746866485232,153.07,0.000199,31]
[360539868,1746866485272,153.07,0.000199,31]
[360539869,1746866485324,153.07,0.000199,31]
[360539870,1746866485374,153.07,0.000199,31]
[360539871,1746866485416,153.07,0.000199,31]
[360539872,1746866485467,153.07,0.000199,31]
[360539873,1746866485519,153.07,0.000199,31]
[360539874,1746866485576,153.07,0.000199,31]
[360539875,1746866485630,153.07,0.000199,31]
[360539876,1746866486329,153.07,0.000199,31]
[360539877,1746866492486,169.5,0.00022,120]
[360539880,1746866549098,238.64505219,0.0002,30]
[360539888,1746866718211,6000.0,0.00015,6]
[360539889,1746866841994,3000.0,0.00015,6]
[360539893,1746866872514,3000.0,0.00015,6]
[360539895,1746866891346,2000.0,0.00015,6]
[360539896,1746866896308,859.6271672,0.00022,120]
[360539898,1746866907148,4000.0,0.00015,6]
[360539899,1746866931760,7000.0,0.00015,6]
[360539901,1746867000232,5000.0,0.00015,6]
[360539903,1746867002487,24900.0,7.397e-05,2]
[360539909,1746867014113,463.1576437,7.281e-05,2]
[360539933,1746867032458,-300.0,8.126e-05,2]
[360539934,1746867032468,-415.0,8.243e-05,2]
[360539935,1746867032479,-548.24951675,8.243e-05,2]
[360539936,1746867032489,-617.83930293,8.243e-05,2]
[360539937,1746867032499,-177.564,8.244e-05,2]
[360539938,1746867032509,-21373.18305477,8.244e-05,2]
[360539939,1746867032519,-503.81711862,8.393e-05,2]
[360539940,1746867032529,-500.0,8.393e-05,2]
[360539941,1746867032539,-500.0,8.393e-05,2]
[360539942,1746867032550,-501.97282584,8.393e-05,2]
[360539943,1746867032562,-503.80340685,8.393e-05,2]
[360539944,1746867032571,-503.15099801,8.393e-05,2]
[360539945,1746867032583,-440.99337418,8.393e-05,2]
[360539946,1746867032593,-500.0,8.393e-05,2]
[360539947,1746867032602,-501.08252237,8.393e-05,2]
[360539948,1746867032612,-369.94276848,8.393e-05,2]
[360539949,1746867032622,-500.0,8.393e-05,2]
[360539950,1746867032631,-500.0,8.393e-05,2]
[360539951,1746867032641,-504.0622359,8.393e-05,2]
[360539952,1746867032650,-500.0,8.393e-05,2]
[360539953,1746867032660,-614.61332246,8.393e-05,2]
[360539954,1746867032670,-500.0,8.393e-05,2]
[360539955,1746867032680,-500.0,8.393e-05,2]
[360539956,1746867032690,-502.63684409,8.393e-05,2]
[360539957,1746867032699,-500.0,8.393e-05,2]
[360539958,1746867032709,-504.64006366,8.393e-05,2]
[360539959,1746867032719,-500.0,8.393e-05,2]
[360539960,1746867032730,-392.62877997,8.393e-05,2]
[360539961,1746867032739,-500.0,8.393e-05,2]
[360539962,1746867032750,-500.0,8.393e-05,2]
[360539963,1746867032760,-500.0,8.393e-05,2]
[360539964,1746867032769,-502.05292115,8.393e-05,2]
[360539965,1746867032779,-500.0,8.393e-05,2]
[360539966,1746867032788,-11851.59969207,8.412e-05,2]
[360539967,1746867032804,-4199.499995,8.412e-05,2]
[360539968,1746867032819,-359.3437208,8.412e-05,2]
[360539969,1746867032870,-230.46951344,8.116e-05,2]
[360539970,1746867032879,-12111.98664165,8.412e-05,2]
[360539971,1746867032891,-4336.82424017,8.412e-05,2]
[360539982,1746867038376,-531.95522953,8.116e-05,2]
[360539983,1746867038386,-500.0,8.116e-05,2]
[360539984,1746867038396,-23979.34632181,8.412e-05,2]
[360539985,1746867038408,-1811.9,8.412e-05,2]
[360539986,1746867038420,-2422.5,8.412e-05,2]
[360540049,1746867041180,-3141.8221496,8.412e-05,2]
[360540051,1746867044440,1000.0,0.00015,6]
[360540070,1746867046673,-14738.05530048,8.412e-05,2]
[360540078,1746867046847,-5033.31057499,8.412e-05,2]
[360540090,1746867047131,-92760.83781894,8.412e-05,2]
[360540092,1746867047152,-21985.86123327,8.412e-05,2]
[360540094,1746867047169,-187574.46200952,8.412e-05,2]
[360540173,1746867593616,1000.0,0.00015,6]
[360540174,1746867614176,3000.0,0.00015,6]
[360540175,1746867663879,-205.85782687,8.11e-05,2]
[360540176,1746867664728,3039.5,0.00015,6]
[360540177,1746867677782,-94.14217313,8.11e-05,2]
[360540178,1746867725972,-200.0,8.11e-05,2]
[360540179,1746867737853,-100.0,8.11e-05,2]
[360540181,1746867767760,-215.14883287,8.111e-05,2]
[360540182,1746867782806,-181.41652582,8.111e-05,2]
[360540183,1746867796587,-300.0,8.11e-05,2]
[360540184,1746867796611,-103.43464131,8.111e-05,2]
[360540185,1746867796634,-500.0,8.111e-05,2]
[360540186,1746867796658,-576.52191057,8.111e-05,2]
[360540187,1746867796681,-500.0,8.111e-05,2]
[360540188,1746867796704,-536.04653016,8.111e-05,2]
[360540189,1746867796727,-500.0,8.111e-05,2]
[360540190,1746867796754,-265.21910569,8.111e-05,2]
[360540191,1746867796776,-205.85782687,8.111e-05,2]
[360540192,1746867796798,-152.59667908,8.111e-05,2]
[360540193,1746867796820,-177.56408074,8.244e-05,2]
[360540194,1746867796842,-500.0,8.391e-05,2]
[360540195,1746867796864,-292.68178709,8.391e-05,2]
[360540196,1746867796885,-500.0,8.391e-05,2]
[360540197,1746867796912,-190.03454359,8.391e-05,2]
[360540198,1746867796933,-2901.16976451,8.391e-05,2]
[360540199,1746867796954,-500.0,8.393e-05,2]
[360540200,1746867796976,-500.0,8.393e-05,2]
[360540201,1746867796997,-500.0,8.393e-05,2]
[360540202,1746867797017,-500.0,8.393e-05,2]
[360540203,1746867797038,-500.70476671,8.393e-05,2]
[360540204,1746867797058,-500.0,8.393e-05,2]
[360540205,1746867797079,-477.86988302,8.393e-05,2]
[360540206,1746867797099,-500.0,8.393e-05,2]
[360540207,1746867797121,-504.68536532,8.393e-05,2]
[360540208,1746867797141,-500.0,8.393e-05,2]
[360540209,1746867797166,-500.0,8.393e-05,2]
[360540210,1746867797186,-500.0,8.393e-05,2]
[360540211,1746867797208,-226.21874148,8.407e-05,2]
[360540212,1746867797232,-35589.39437386,8.412e-05,2]
[360540213,1746867811672,-151.0,8.111e-05,2]
[360540216,1746867829222,-205.85782687,8.026e-05,2]
[360540218,1746867849040,-195.94854829,8.011e-05,2]
[360540219,1746867850081,-152.0,8.011e-05,2]
[360540220,1746867858340,-199.6168104,8.011e-05,2]
[360540221,1746867858365,-44.14217313,8.026e-05,2]
[360540222,1746867858389,-97.69298814,8.11e-05,2]
[360540225,1746867873421,-158.54802833,8.109e-05,2]
[360540226,1746867873970,-158.54802833,8.109e-05,2]
[360540227,1746867888091,-182.90394334,8.109e-05,2]
[360540228,1746867888116,-317.09605666,8.109e-05,2]
[360540229,1746867903798,-182.90394334,8.109e-05,2]
[360540230,1746867903823,-11.77005666,8.109e-05,2]
[360540231,1746867917737,-256.15802804,8.109e-05,2]
[360540232,1746867917761,-83.80385374,8.109e-05,2]
[360540233,1746867932939,-74.74417459,8.109e-05,2]
[360540234,1746867932964,-425.25582541,8.109e-05,2]
[360540235,1746867948412,-74.74417459,8.109e-05,2]
[360540236,1746867948437,-170.00600894,8.109e-05,2]
[360540237,1746867963454,-24.66799106,8.109e-05,2]
[360540238,1746867963477,-249.86906125,8.109e-05,2]
[360540239,1746867978581,-78.82601757,8.109e-05,2]
[360540240,1746867978608,-296.63616385,8.109e-05,2]
[360540241,1746867992865,-214.63063911,8.109e-05,2]
[360540242,1746868032917,-165.38507269,8.109e-05,2]
[360540243,1746868038517,-79.36511084,8.109e-05,2]
[360540252,1746868143032,1049.8543219,7.414e-05,2]
[360540256,1746868189455,24900.0,7.413e-05,2]
[360540381,1746868237411,-500.0,8.39e-05,2]
[360540382,1746868237423,-439.73440674,8.39e-05,2]
[360540383,1746868237433,-300.0,8.392e-05,2]
[360540384,1746868237445,-176.08185506,8.393e-05,2]
[360540385,1746868237457,-99.07094867,8.393e-05,2]
[360540386,1746868237467,-503.93562942,8.393e-05,2]
[360540387,1746868237476,-555.45413413,8.393e-05,2]
[360540388,1746868237493,-500.0,8.393e-05,2]
[360540389,1746868237511,-500.0,8.393e-05,2]
[360540390,1746868237521,-500.0,8.393e-05,2]
[360540391,1746868237530,-500.0,8.393e-05,2]
[360540392,1746868237542,-500.0,8.393e-05,2]
[360540393,1746868237552,-483.02418051,8.41e-05,2]
[360540394,1746868237562,-500.0,8.41e-05,2]
[360540395,1746868237572,-187.9699537,8.41e-05,2]
[360540396,1746868237581,-50000.0,8.411e-05,2]
[360540397,1746868237592,-28070.10758631,8.412e-05,2]
[360540398,1746868237700,-25504.0048338,8.412e-05,2]
[360540452,1746868243838,-17251.63949523,8.412e-05,2]
[360540484,1746868246991,-47611.97988205,8.412e-05,2]
[360540485,1746868247005,-33949.74391822,8.412e-05,2]
[360540486,1746868247029,-694.83170852,8.412e-05,2]
[360540487,1746868247040,-70696.83425071,8.412e-05,2]
[360540505,1746869296860,23873.5611471,7.397e-05,2]
[360540563,1746869431938,-300.0,8.3e-05,2]
[360540565,1746869431948,-468.0,8.3e-05,2]
[360540567,1746869431958,-300.0,8.3e-05,2]
[360540568,1746869431968,-163.3935257,8.301e-05,2]
[360540569,1746869431977,-336.6064743,8.301e-05,2]
[360540570,1746869431987,-500.0,8.301e-05,2]
[360540571,1746869431996,-4.64996622,8.301e-05,2]
[360540572,1746869432047,-333.71869283,8.301e-05,2]
[360540573,1746869432056,-396.76743926,8.301e-05,2]
[360540574,1746869432067,-186.86794338,8.301e-05,2]
[360540575,1746869432078,-1000.0,8.312e-05,2]
[360540576,1746869432087,-611.17844677,8.385e-05,2]
[360540577,1746869432097,-518.39984843,8.385e-05,2]
[360540578,1746869432107,-714.09240866,8.389e-05,2]
[360540579,1746869432117,-326.89922078,8.391e-05,2]
[360540580,1746869432127,-400.0,8.391e-05,2]
[360540581,1746869432139,-442.19,8.391e-05,2]
[360540582,1746869432150,-400.0,8.391e-05,2]
[360540583,1746869432159,-1722.95,8.391e-05,2]
[360540584,1746869432169,-400.0,8.391e-05,2]
[360540585,1746869432179,-1440.78,8.391e-05,2]
[360540586,1746869432189,-973.02428091,8.391e-05,2]
[360540587,1746869432201,-3481.47571909,8.391e-05,2]
[360540588,1746869432211,-984.84,8.391e-05,2]
[360540589,1746869432221,-400.0,8.391e-05,2]
[360540590,1746869432231,-400.0,8.391e-05,2]
[360540591,1746869432241,-501.62748399,8.391e-05,2]
[360540592,1746869432250,-400.0,8.391e-05,2]
[360540593,1746869432260,-400.0,8.391e-05,2]
[360540594,1746869432270,-400.0,8.391e-05,2]
[360540595,1746869432280,-400.0,8.391e-05,2]
[360540596,1746869432289,-10291.37,8.391e-05,2]
[360540597,1746869432299,-9678.65,8.391e-05,2]
[360540598,1746869432309,-1277.02,8.391e-05,2]
[360540599,1746869432320,-594.5,8.391e-05,2]
[360540600,1746869432331,-400.0,8.391e-05,2]
[360540601,1746869432340,-3029.48,8.391e-05,2]
[360540602,1746869432351,-1578.31,8.391e-05,2]
[360540603,1746869432360,-2577.48,8.391e-05,2]
[360540604,1746869432370,-400.0,8.391e-05,2]
[360540605,1746869432381,-3116.61,8.391e-05,2]
[360540606,1746869432392,-400.0,8.391e-05,2]
[360540607,1746869432402,-400.0,8.391e-05,2]
[360540608,1746869432412,-403.4204317,8.391e-05,2]
[360540609,1746869432422,-400.0,8.391e-05,2]
[360540610,1746869432432,-400.0,8.391e-05,2]
[360540611,1746869432442,-3624.93,8.391e-05,2]
[360540612,1746869432452,-400.0,8.391e-05,2]
[360540613,1746869432462,-400.0,8.391e-05,2]
[360540614,1746869432471,-400.0,8.391e-05,2]
[360540615,1746869432481,-511.73940151,8.391e-05,2]
[360540616,1746869432686,-1063.02,8.391e-05,2]
[360540617,1746869432698,-400.0,8.391e-05,2]
[360540618,1746869432709,-400.0,8.391e-05,2]
[360540619,1746869432719,-400.0,8.391e-05,2]
[360540620,1746869432728,-3055.25,8.391e-05,2]
[360540621,1746869432738,-400.0,8.391e-05,2]
[360540622,1746869432748,-400.0,8.391e-05,2]
[360540623,1746869432760,-172.61531732,8.391e-05,2]
[360540624,1746869432771,-1418.24,8.392e-05,2]
[360540625,1746869432781,-400.0,8.392e-05,2]
[360540626,1746869432790,-433.73,8.392e-05,2]
[360540627,1746869432800,-400.0,8.392e-05,2]
[360540628,1746869432810,-400.0,8.392e-05,2]
[360540629,1746869432819,-412.25,8.392e-05,2]
[360540630,1746869432829,-400.0,8.392e-05,2]
[360540631,1746869432840,-1005.83,8.392e-05,2]
[360540632,1746869432850,-1199.33,8.392e-05,2]
[360540633,1746869432859,-400.0,8.392e-05,2]
[360540634,1746869432868,-400.0,8.392e-05,2]
[360540635,1746869432878,-400.0,8.392e-05,2]
[360540636,1746869432888,-400.0,8.392e-05,2]
[360540637,1746869432898,-403.74094155,8.392e-05,2]
[360540638,1746869432908,-400.0,8.392e-05,2]
[360540639,1746869432917,-400.0,8.392e-05,2]
[360540640,1746869432927,-400.0,8.392e-05,2]
[360540641,1746869432937,-400.0,8.392e-05,2]
[360540642,1746869432947,-863.08,8.392e-05,2]
[360540643,1746869432957,-400.0,8.392e-05,2]
[360540644,1746869432967,-400.0,8.392e-05,2]
[360540645,1746869432976,-1091.03,8.392e-05,2]
[360540646,1746869432986,-1125.64,8.392e-05,2]
[360540647,1746869432995,-1470.23,8.392e-05,2]
[360540648,1746869433005,-1431.24,8.392e-05,2]
[360540649,1746869433015,-324.50258427,8.392e-05,2]
[360540650,1746869433025,-400.0,8.392e-05,2]
[360540651,1746869433035,-553.32,8.392e-05,2]
[360540652,1746869433045,-400.0,8.392e-05,2]
[360540653,1746869433055,-400.0,8.392e-05,2]
[360540654,1746869433065,-1105.75,8.392e-05,2]
[360540655,1746869433088,-1095.67,8.392e-05,2]
[360540656,1746869433099,-3397.81,8.392e-05,2]
[360540657,1746869433110,-400.0,8.392e-05,2]
[360540658,1746869433120,-293.7800877,8.392e-05,2]
[360540690,1746869438006,-400.0,8.391e-05,2]
[360540691,1746869438016,-329.02875624,8.391e-05,2]
[360540692,1746869438026,-754.36,8.391e-05,2]
[360540693,1746869438036,-400.0,8.391e-05,2]
[360540694,1746869438046,-106.2199123,8.392e-05,2]
[360540695,1746869438055,-400.0,8.392e-05,2]
[360540696,1746869438065,-400.0,8.392e-05,2]
[360540697,1746869438075,-736.44,8.392e-05,2]
[360540698,1746869438084,-400.0,8.392e-05,2]
[360540699,1746869438094,-889.9,8.392e-05,2]
[360540700,1746869438104,-418.43,8.392e-05,2]
[360540701,1746869438114,-332.36323163,8.392e-05,2]
[360540703,1746869438125,-400.0,8.392e-05,2]
[360540704,1746869438144,-400.0,8.392e-05,2]
[360540705,1746869438154,-230.18517141,8.392e-05,2]
[360540706,1746869438164,-583.52,8.392e-05,2]
[360540707,1746869438174,-401.9,8.392e-05,2]
[360540708,1746869438183,-5173.7,8.392e-05,2]
[360540709,1746869438193,-400.0,8.392e-05,2]
[360540710,1746869438202,-400.0,8.392e-05,2]
[360540711,1746869438212,-400.0,8.392e-05,2]
[360540712,1746869438222,-400.0,8.392e-05,2]
[360540713,1746869438232,-836.21,8.392e-05,2]
[360540714,1746869438242,-400.0,8.392e-05,2]
[360540715,1746869438251,-508.85,8.392e-05,2]
[360540716,1746869438261,-400.0,8.392e-05,2]
[360540717,1746869438271,-400.0,8.392e-05,2]
[360540718,1746869438281,-502.91242175,8.392e-05,2]
[360540719,1746869438290,-576.91084701,8.392e-05,2]
[360540720,1746869438305,-373.25915299,8.392e-05,2]
[360540721,1746869438315,-500.0,8.392e-05,2]
[360540722,1746869438325,-2042.19,8.392e-05,2]
[360540723,1746869438335,-1337.52629601,8.392e-05,2]
[360540747,1746869440109,-772.79413623,8.385e-05,2]
[360540836,1746869442995,-6479.27472481,8.385e-05,2]
[360540838,1746869443005,-1071.28,8.391e-05,2]
[360540840,1746869443016,-948.53370399,8.392e-05,2]
[360540842,1746869443027,-1001.97,8.392e-05,2]
[360540844,1746869443037,-400.0,8.392e-05,2]
[360540846,1746869443046,-400.0,8.392e-05,2]
[360540848,1746869443056,-2030.82,8.392e-05,2]
[360540850,1746869443065,-400.0,8.392e-05,2]
[360540852,1746869443075,-8749.19,8.392e-05,2]
[360540854,1746869443084,-542.76,8.392e-05,2]
[360540856,1746869443093,-968.55,8.392e-05,2]
[360540858,1746869443103,-595.14,8.392e-05,2]
[360540860,1746869443112,-179.67212722,8.392e-05,2]
[360540864,1746869443146,-1073.43,8.391e-05,2]
[360540866,1746869443156,-220.32787278,8.392e-05,2]
[360540868,1746869443165,-685.91,8.392e-05,2]
[360540870,1746869443175,-1061.56,8.392e-05,2]
[360540873,1746869443185,-983.72,8.392e-05,2]
[360540875,1746869443195,-2541.73,8.392e-05,2]
[360540877,1746869443205,-464.24,8.392e-05,2]
[360540878,1746869443215,-400.0,8.392e-05,2]
[360540880,1746869443224,-931.89,8.392e-05,2]
[360540882,1746869443234,-4491.96,8.392e-05,2]
[360540883,1746869443244,-10002.98,8.392e-05,2]
[360540884,1746869443253,-1612.21,8.392e-05,2]
[360540885,1746869443263,-400.0,8.392e-05,2]
[360540886,1746869443272,-2585.45,8.392e-05,2]
[360540887,1746869443282,-400.0,8.392e-05,2]
[360540888,1746869443291,-963.56,8.392e-05,2]
[360540889,1746869443301,-1187.91,8.392e-05,2]
[360540890,1746869443310,-400.0,8.392e-05,2]
[360540891,1746869443320,-400.0,8.392e-05,2]
[360540892,1746869443330,-1405.26,8.392e-05,2]
[360540893,1746869443339,-444.78576932,8.392e-05,2]
[360540894,1746869443349,-438.09,8.392e-05,2]
[360540895,1746869443358,-645.63,8.392e-05,2]
[360540896,1746869443368,-321.5197954,8.392e-05,2]
[360540897,1746869443377,-401.90281718,8.392e-05,2]
[360540898,1746869443387,-3320.98,8.392e-05,2]
[360540899,1746869443397,-400.0,8.392e-05,2]
[360540900,1746869443407,-1075.58,8.392e-05,2]
[360540901,1746869443416,-431.75,8.392e-05,2]
[360540902,1746869443425,-400.0,8.392e-05,2]
[360540903,1746869443434,-637.78,8.392e-05,2]
[360540904,1746869443444,-5218.3,8.392e-05,2]
[360540905,1746869443453,-1072.9,8.392e-05,2]
[360540906,1746869443463,-469.99,8.392e-05,2]
[360540907,1746869443472,-154.01001035,8.392e-05,2]
[360540908,1746869443482,-400.0,8.392e-05,2]
[360540909,1746869443492,-400.0,8.392e-05,2]
[360540910,1746869443502,-1516.93,8.392e-05,2]
[360540911,1746869443511,-2858.11,8.392e-05,2]
[360540912,1746869443521,-400.0,8.392e-05,2]
[360540913,1746869443530,-400.0,8.392e-05,2]
[360540914,1746869443540,-2469.1,8.392e-05,2]
[360540915,1746869443549,-400.0,8.392e-05,2]
[360540916,1746869443559,-400.0,8.392e-05,2]
[360540917,1746869443568,-400.0,8.392e-05,2]
[360540918,1746869443577,-376.60607762,8.392e-05,2]
[360540919,1746869443587,-1255.5,8.392e-05,2]
[360540920,1746869443596,-3252.26,8.392e-05,2]
[360540921,1746869443606,-408.69515725,8.392e-05,2]
[360540922,1746869443616,-400.0,8.392e-05,2]
[360540923,1746869443625,-2569.73,8.392e-05,2]
[360540924,1746869443636,-400.0,8.392e-05,2]
[360540925,1746869443648,-2866.11,8.392e-05,2]
[360540926,1746869443658,-400.0,8.392e-05,2]
[360540927,1746869443667,-400.0,8.392e-05,2]
[360540928,1746869443677,-1502.35,8.392e-05,2]
[360540929,1746869443687,-400.0,8.392e-05,2]
[360540930,1746869443697,-585.73,8.392e-05,2]
[360540931,1746869443707,-708.31,8.392e-05,2]
[360540932,1746869443718,-400.0,8.392e-05,2]
[360540933,1746869443730,-1672.98,8.392e-05,2]
[360540934,1746869443741,-508.41766423,8.392e-05,2]
[360540935,1746869443752,-400.0,8.392e-05,2]
[360540936,1746869443766,-400.0,8.392e-05,2]
[360540937,1746869443775,-10068.83,8.392e-05,2]
[360540938,1746869443785,-400.0,8.392e-05,2]
[360540939,1746869443794,-1732.97,8.392e-05,2]
[360540940,1746869443808,-400.0,8.392e-05,2]
[360540941,1746869443818,-2188.88,8.392e-05,2]
[360540942,1746869443827,-855.25,8.392e-05,2]
[360540943,1746869443839,-967.54,8.392e-05,2]
[360540944,1746869443849,-1921.09,8.392e-05,2]
[360540945,1746869443860,-400.0,8.392e-05,2]
[360540946,1746869443870,-1187.48,8.392e-05,2]
[360540947,1746869443879,-400.0,8.392e-05,2]
[360540948,1746869443889,-1408.97,8.392e-05,2]
[360540949,1746869443901,-913.05,8.392e-05,2]
[360540950,1746869443911,-500.0,8.393e-05,2]
[360540951,1746869443921,-500.0,8.393e-05,2]
[360540952,1746869443931,-500.0,8.393e-05,2]
[360540953,1746869443941,-500.0,8.393e-05,2]
[360540954,1746869443952,-500.0,8.393e-05,2]
[360540955,1746869443961,-500.0,8.393e-05,2]
[360540956,1746869443972,-500.0,8.393e-05,2]
[360540957,1746869443982,-503.56528475,8.393e-05,2]
[360540958,1746869443992,-500.0,8.393e-05,2]
[360540959,1746869444003,-500.0,8.393e-05,2]
[360540960,1746869444013,-500.0,8.393e-05,2]
[360540961,1746869444023,-263.61989077,8.393e-05,2]
[360540962,1746869444033,-500.0,8.393e-05,2]
[360540963,1746869444044,-500.0,8.393e-05,2]
[360540964,1746869444054,-500.0,8.393e-05,2]
[360540965,1746869444064,-500.0,8.393e-05,2]
[360540966,1746869444073,-500.0,8.393e-05,2]
[360540967,1746869444083,-500.0,8.393e-05,2]
[360540968,1746869444094,-500.0,8.393e-05,2]
[360540969,1746869444104,-500.0,8.393e-05,2]
[360540970,1746869444114,-500.0,8.393e-05,2]
[360540971,1746869444124,-500.0,8.393e-05,2]
[360540972,1746869444134,-500.0,8.393e-05,2]
[360540973,1746869444146,-500.0,8.393e-05,2]
[360540974,1746869444155,-500.0,8.393e-05,2]
[360540975,1746869444165,-500.0,8.393e-05,2]
[360540976,1746869444175,-500.0,8.393e-05,2]
[360540977,1746869444184,-500.0,8.393e-05,2]
[360540978,1746869444194,-500.0,8.393e-05,2]
[360540979,1746869444203,-500.0,8.393e-05,2]
[360540980,1746869444212,-500.0,8.393e-05,2]
[360540981,1746869444222,-500.98319267,8.393e-05,2]
[360540982,1746869444232,-1894.30464182,8.402e-05,2]